fUSD/lending_fUSD_20260626
["ID","MTS","AMOUNT","RATE_DAILY","PERIOD"]
[426484130,1782449433000,-400.0,0.00012831,2]
[426484135,1782449433000,-693.69606344,0.00012831,2]
[426484134,1782449433000,-3939.47890881,0.00012831,2]
[426484136,1782449433000,-414.04897805,0.00012831,2]
[426484137,1782449433000,-284.60163902,0.00012831,2]
[426484133,1782449433000,-788.97247197,0.00012831,2]
[426484155,1782449438000,-166.66,0.00014837,2]
[426484153,1782449438000,-879.15039025,0.00013361,2]
[426484152,1782449438000,-250.0,0.00013344,2]
[426484150,1782449438000,-193.0,0.00013344,2]
[426484151,1782449438000,-500.0,0.00013344,2]
[426484146,1782449438000,-5073.91,0.00012893,2]
[426484149,1782449438000,-18763.8221,0.00013266,2]
[426484154,1782449438000,-250.0,0.00014,2]
[426484147,1782449438000,-756.51,0.00012893,2]
[426484145,1782449438000,-1781.69,0.00012893,2]
[426484143,1782449438000,-160.0,0.00012539,2]
[426484144,1782449438000,-6912.48900036,0.00012831,2]
[426484148,1782449438000,-216.48047229,0.00013164,2]
[426484159,1782449438000,-10000.0,0.00015536,2]
[426484156,1782449438000,-6868.44180292,0.00015119,2]
[426484160,1782449438000,-500.0,0.00015546,2]
[426484173,1782449438000,-407.86461,0.00015765,2]
[426484172,1782449438000,-1536.42271524,0.00015765,2]
[426484170,1782449438000,-150.0,0.00015765,2]
[426484168,1782449438000,-278.0,0.00015765,2]
[426484158,1782449438000,-166.66,0.00015462,2]
[426484169,1782449438000,-216.0,0.00015765,2]
[426484167,1782449438000,-150.0,0.00015765,2]
[426484171,1782449438000,-841.4534541,0.00015765,2]
[426484164,1782449438000,-1277.0,0.00015765,2]
[426484163,1782449438000,-1361.0,0.00015765,2]
[426484165,1782449438000,-1121.57623418,0.00015765,2]
[426484162,1782449438000,-2434.95,0.00015636,2]
[426484161,1782449438000,-150.0,0.00015546,2]
[426484157,1782449438000,-166.66,0.0001515,2]
[426484166,1782449438000,-108.42376582,0.00015765,2]
[426484190,1782449440000,-1971.44507613,0.00015765,2]
[426484192,1782449440000,-166.66,0.00015774,2]
[426484193,1782449440000,-257.24456847,0.00015777,2]
[426484191,1782449440000,-200.76543153,0.00015765,2]
[426484189,1782449440000,-1126.048713,0.00015765,2]
[426484203,1782449443000,-191.68,0.00016,14]
[426484201,1782449443000,-97.74543153,0.00015777,2]
[426484205,1782449443000,-21.82425373,0.00016,2]
[426484202,1782449443000,-300.0,0.00016,2]
[426484200,1782449443000,-153.4489599,0.00013897,2]
[426484204,1782449443000,-402.33360475,0.00016,2]
[426484210,1782449443000,-28.80074627,0.00018299,2]
[426484209,1782449443000,-350.0,0.00018,2]
[426484206,1782449443000,-166.66,0.00016087,2]
[426484208,1782449443000,-199.5,0.00017131,2]
[426484213,1782449443000,-440.71576796,0.00018299,2]
[426484212,1782449443000,-223.02762781,0.00018299,2]
[426484211,1782449443000,-1248.17162592,0.00018299,2]
[426484207,1782449443000,-166.66,0.00016399,2]
[426484219,1782449447000,-1059.28423204,0.00018299,2]
[426484218,1782449447000,-151.0,0.00017551,2]
[426484222,1782449447000,-1500.0,0.00018299,2]
[426484221,1782449447000,-1500.0,0.00018299,2]
[426484224,1782449447000,-866.49711119,0.0001855,2]
[426484225,1782449447000,-1277.0,0.00018765,2]
[426484220,1782449447000,-1500.0,0.00018299,2]
[426484227,1782449447000,-86.74837407,0.00018765,2]
[426484226,1782449447000,-63.25162593,0.00018765,2]
[426484229,1782449447000,-118.40337692,0.00018765,2]
[426484228,1782449447000,-216.0,0.00018765,2]
[426484230,1782449447000,-31.59662308,0.00018765,2]
[426484231,1782449447000,-2717.9217618,0.00018765,2]
[426484232,1782449447000,-445.92659237,0.00018765,2]
[426484223,1782449447000,-1500.0,0.00018373,2]
[426484244,1782449607000,194.71,0.00028588,120]
[426484245,1782449690000,504.57661109,0.00037253,120]
[426484246,1782449798000,500.0,0.00037253,120]
[426484249,1782450062000,500.0,0.00037255,120]
[426484250,1782450062000,500.0,0.00037255,120]
[426484252,1782450295000,500.0,0.00037289,120]
[426484253,1782450304000,2842.0,0.000315,120]
[426484254,1782450329000,-414.093,0.0001184,2]
[426484256,1782450329000,-500.0,0.00011931,2]
[426484255,1782450329000,-150.0,0.00011885,2]
[426484262,1782450329000,-160.0,0.00012077,2]
[426484258,1782450329000,-219.31362208,0.00011965,2]
[426484259,1782450329000,-500.0,0.00012031,2]
[426484260,1782450329000,-504.6081,0.00012065,2]
[426484261,1782450329000,-160.0,0.00012076,2]
[426484264,1782450329000,-14229.8716,0.00012831,2]
[426484257,1782450329000,-250.0,0.0001194,2]
[426484265,1782450329000,-216.48047229,0.00012842,2]
[426484266,1782450329000,-8799.87058847,0.00012893,2]
[426484267,1782450329000,-150.0,0.00013076,2]
[426484268,1782450329000,-166.66,0.0001312,2]
[426484269,1782450329000,-250.0,0.00013124,2]
[426484271,1782450329000,-219.31362208,0.00013166,2]
[426484270,1782450329000,-250.0,0.00013124,2]
[426484272,1782450329000,-1852.42,0.0001323,2]
[426484273,1782450329000,-1166.055373,0.00013256,2]
[426484263,1782450329000,-219.31362208,0.00012566,2]
[426484275,1782450536000,500.0,0.00037289,120]
[426484310,1782450632000,-216.48047229,0.00013257,2]
[426484316,1782450632000,-152.0,0.00013266,2]
[426484312,1782450632000,-1000.0,0.00013265,2]
[426484306,1782450632000,-152.0,0.00013256,2]
[426484307,1782450632000,-292.0,0.00013256,2]
[426484313,1782450632000,-1000.0,0.00013265,2]
[426484305,1782450632000,-152.0,0.00013256,2]
[426484314,1782450632000,-150.0,0.00013265,2]
[426484321,1782450632000,-152.0,0.00013266,2]
[426484317,1782450632000,-152.0,0.00013266,2]
[426484322,1782450632000,-152.0,0.00013266,2]
[426484320,1782450632000,-152.0,0.00013266,2]
[426484309,1782450632000,-151.0,0.00013256,2]
[426484319,1782450632000,-192.0,0.00013266,2]
[426484318,1782450632000,-152.0,0.00013266,2]
[426484323,1782450632000,-152.0,0.00013266,2]
[426484324,1782450632000,-296.0,0.00013266,2]
[426484315,1782450632000,-152.0,0.00013266,2]
[426484303,1782450632000,-152.0,0.00013256,2]
[426484311,1782450632000,-160.0,0.00013258,2]
[426484302,1782450632000,-296.0,0.00013256,2]
[426484326,1782450632000,-152.0,0.00013266,2]
[426484287,1782450632000,-199.44,0.00010942,2]
[426484288,1782450632000,-150.0,0.00011386,2]
[426484299,1782450632000,-76.704627,0.00013256,2]
[426484291,1782450632000,-250.0,0.00012099,2]
[426484290,1782450632000,-250.0,0.00012036,2]
[426484289,1782450632000,-500.0,0.00011831,2]
[426484293,1782450632000,-166.66,0.00012437,2]
[426484297,1782450632000,-200.0,0.00013106,2]
[426484292,1782450632000,-160.0,0.00012101,2]
[426484296,1782450632000,-166.66,0.00012961,2]
[426484294,1782450632000,-166.66,0.00012699,2]
[426484295,1782450632000,-2302.9153,0.00012793,2]
[426484298,1782450632000,-166.66,0.00013223,2]
[426484300,1782450632000,-152.0,0.00013256,2]
[426484301,1782450632000,-152.0,0.00013256,2]
[426484304,1782450632000,-152.0,0.00013256,2]
[426484308,1782450632000,-152.0,0.00013256,2]
[426484328,1782450632000,-152.0,0.00013266,2]
[426484368,1782450632000,-500.0,0.00014776,2]
[426484327,1782450632000,-152.0,0.00013266,2]
[426484355,1782450632000,-500.0,0.00014573,2]
[426484356,1782450632000,-498.1091029,0.00014573,2]
[426484357,1782450632000,-683.97,0.00014661,2]
[426484359,1782450632000,-7017.05819641,0.00014679,2]
[426484361,1782450632000,-167.81,0.00014723,2]
[426484358,1782450632000,-2996.91241834,0.00014677,2]
[426484373,1782450632000,-500.0,0.00014776,2]
[426484363,1782450632000,-2961.97499389,0.00014753,2]
[426484372,1782450632000,-313.25479449,0.00014776,2]
[426484362,1782450632000,-7017.05819634,0.00014728,2]
[426484365,1782450632000,-238.48060912,0.00014753,2]
[426484364,1782450632000,-3816.60259333,0.00014753,2]
[426484370,1782450632000,-500.0,0.00014776,2]
[426484366,1782450632000,-500.0,0.00014776,2]
[426484369,1782450632000,-500.0,0.00014776,2]
[426484367,1782450632000,-500.0,0.00014776,2]
[426484330,1782450632000,-292.0,0.00013266,2]
[426484360,1782450632000,-7017.05819634,0.00014704,2]
[426484352,1782450632000,-500.0,0.00014573,2]
[426484371,1782450632000,-500.27881136,0.00014776,2]
[426484353,1782450632000,-500.0,0.00014573,2]
[426484332,1782450632000,-474.9,0.00013293,2]
[426484354,1782450632000,-500.0,0.00014573,2]
[426484325,1782450632000,-152.0,0.00013266,2]
[426484334,1782450632000,-166.66,0.00013485,2]
[426484339,1782450632000,-952.7,0.00013579,2]
[426484336,1782450632000,-154.05896205,0.00013488,2]
[426484343,1782450632000,-335.238906,0.00014057,2]
[426484340,1782450632000,-167.81,0.00013601,2]
[426484344,1782450632000,-902.29,0.00014178,2]
[426484341,1782450632000,-166.66,0.00013747,2]
[426484347,1782450632000,-4999.99,0.00014504,2]
[426484349,1782450632000,-6814.67,0.00014504,2]
[426484346,1782450632000,-255.0,0.00014379,2]
[426484345,1782450632000,-500.0,0.00014224,2]
[426484350,1782450632000,-150.99,0.00014504,2]
[426484348,1782450632000,-42278.43,0.00014504,2]
[426484351,1782450632000,-2130.75,0.00014504,2]
[426484342,1782450632000,-250.0,0.00014,2]
[426484397,1782450633000,-500.0,0.00014776,2]
[426484380,1782450633000,-296.54903417,0.00014776,2]
[426484396,1782450633000,-500.0,0.00014776,2]
[426484395,1782450633000,-500.0,0.00014776,2]
[426484393,1782450633000,-500.0,0.00014776,2]
[426484394,1782450633000,-500.0,0.00014776,2]
[426484386,1782450633000,-500.0,0.00014776,2]
[426484382,1782450633000,-439.95110467,0.00014776,2]
[426484377,1782450633000,-500.0,0.00014776,2]
[426484383,1782450633000,-500.0,0.00014776,2]
[426484381,1782450633000,-500.0,0.00014776,2]
[426484385,1782450633000,-481.53396143,0.00014776,2]
[426484379,1782450633000,-500.0,0.00014776,2]
[426484376,1782450633000,-500.0,0.00014776,2]
[426484378,1782450633000,-376.625415,0.00014776,2]
[426484375,1782450633000,-500.0,0.00014776,2]
[426484374,1782450633000,-500.35489689,0.00014776,2]
[426484388,1782450633000,-500.0,0.00014776,2]
[426484384,1782450633000,-18.46603857,0.00014776,2]
[426484387,1782450633000,-500.0,0.00014776,2]
[426484400,1782450633000,-500.0,0.00014776,2]
[426484392,1782450633000,-500.0,0.00014776,2]
[426484389,1782450633000,-500.0,0.00014776,2]
[426484412,1782450633000,-500.0,0.00014776,2]
[426484413,1782450633000,-435.58331996,0.00014776,2]
[426484411,1782450633000,-500.0,0.00014776,2]
[426484415,1782450633000,-399.70604068,0.00014776,2]
[426484414,1782450633000,-64.41668004,0.00014776,2]
[426484409,1782450633000,-500.0,0.00014776,2]
[426484404,1782450633000,-500.0,0.00014776,2]
[426484407,1782450633000,-500.0,0.00014776,2]
[426484410,1782450633000,-500.0,0.00014776,2]
[426484401,1782450633000,-500.0,0.00014776,2]
[426484403,1782450633000,-500.0,0.00014776,2]
[426484408,1782450633000,-500.0,0.00014776,2]
[426484405,1782450633000,-500.0,0.00014776,2]
[426484406,1782450633000,-500.0,0.00014776,2]
[426484398,1782450633000,-500.0,0.00014776,2]
[426484399,1782450633000,-645.17249619,0.00014776,2]
[426484390,1782450633000,-500.0,0.00014776,2]
[426484402,1782450633000,-500.0,0.00014776,2]
[426484391,1782450633000,-500.0,0.00014776,2]
[426484446,1782450638000,-854.59125118,0.00014776,2]
[426484437,1782450638000,-854.59125118,0.00014776,2]
[426484439,1782450638000,-854.59125118,0.00014776,2]
[426484445,1782450638000,-854.59125118,0.00014776,2]
[426484443,1782450638000,-854.59125118,0.00014776,2]
[426484441,1782450638000,-854.59125118,0.00014776,2]
[426484438,1782450638000,-854.59125118,0.00014776,2]
[426484444,1782450638000,-854.59125118,0.00014776,2]
[426484449,1782450638000,-854.59125118,0.00014776,2]
[426484447,1782450638000,-854.59125118,0.00014776,2]
[426484436,1782450638000,-854.59125118,0.00014776,2]
[426484440,1782450638000,-854.59125118,0.00014776,2]
[426484435,1782450638000,-854.59125118,0.00014776,2]
[426484433,1782450638000,-854.59125118,0.00014776,2]
[426484432,1782450638000,-854.59125118,0.00014776,2]
[426484428,1782450638000,-854.59125118,0.00014776,2]
[426484427,1782450638000,-854.59125118,0.00014776,2]
[426484423,1782450638000,-854.59125118,0.00014776,2]
[426484429,1782450638000,-854.59125118,0.00014776,2]
[426484434,1782450638000,-854.59125118,0.00014776,2]
[426484426,1782450638000,-854.59125118,0.00014776,2]
[426484431,1782450638000,-187.68004777,0.00014776,2]
[426484425,1782450638000,-854.59125118,0.00014776,2]
[426484424,1782450638000,-854.59125118,0.00014776,2]
[426484422,1782450638000,-854.59125118,0.00014776,2]
[426484421,1782450638000,-454.8852105,0.00014776,2]
[426484430,1782450638000,-666.91120341,0.00014776,2]
[426484452,1782450638000,-854.59125118,0.00014776,2]
[426484442,1782450638000,-854.59125118,0.00014776,2]
[426484448,1782450638000,-854.59125118,0.00014776,2]
[426484454,1782450638000,-854.59125118,0.00014776,2]
[426484479,1782450638000,-5570.2809814,0.00014777,2]
[426484475,1782450638000,-893.00520907,0.00014776,2]
[426484476,1782450638000,-893.00520907,0.00014776,2]
[426484474,1782450638000,-893.00520907,0.00014776,2]
[426484477,1782450638000,-893.00520907,0.00014776,2]
[426484473,1782450638000,-893.00520909,0.00014776,2]
[426484467,1782450638000,-893.00520909,0.00014776,2]
[426484470,1782450638000,-893.00520909,0.00014776,2]
[426484471,1782450638000,-893.00520909,0.00014776,2]
[426484469,1782450638000,-893.00520909,0.00014776,2]
[426484468,1782450638000,-893.00520909,0.00014776,2]
[426484466,1782450638000,-893.00520909,0.00014776,2]
[426484463,1782450638000,-893.00520909,0.00014776,2]
[426484478,1782450638000,-893.00520907,0.00014776,2]
[426484464,1782450638000,-893.00520909,0.00014776,2]
[426484450,1782450638000,-854.59125118,0.00014776,2]
[426484465,1782450638000,-893.00520909,0.00014776,2]
[426484451,1782450638000,-854.59125118,0.00014776,2]
[426484456,1782450638000,-854.59125118,0.00014776,2]
[426484455,1782450638000,-854.59125118,0.00014776,2]
[426484459,1782450638000,-893.00520909,0.00014776,2]
[426484453,1782450638000,-854.59125118,0.00014776,2]
[426484460,1782450638000,-893.00520909,0.00014776,2]
[426484458,1782450638000,-893.00520909,0.00014776,2]
[426484462,1782450638000,-893.00520909,0.00014776,2]
[426484472,1782450638000,-893.00520909,0.00014776,2]
[426484461,1782450638000,-893.00520909,0.00014776,2]
[426484457,1782450638000,-893.00520909,0.00014776,2]
[426484518,1782450639000,-405.7557061,0.000149,2]
[426484512,1782450639000,-222.14823108,0.000149,2]
[426484522,1782450639000,-193.78846744,0.000149,2]
[426484525,1782450639000,-7030.96,0.00014921,2]
[426484520,1782450639000,-194.85915141,0.000149,2]
[426484514,1782450639000,-155.10972126,0.000149,2]
[426484499,1782450639000,-155.10972126,0.00014865,2]
[426484497,1782450639000,-7017.05819634,0.00014851,2]
[426484495,1782450639000,-2500.0,0.00014847,2]
[426484493,1782450639000,-7017.05819634,0.00014826,2]
[426484491,1782450639000,-7017.05819634,0.00014802,2]
[426484510,1782450639000,-200.6108483,0.000149,2]
[426484503,1782450639000,-7017.05819634,0.00014875,2]
[426484501,1782450639000,-155.10972126,0.00014874,2]
[426484505,1782450639000,-155.10972126,0.00014882,2]
[426484486,1782450639000,-7017.05819634,0.00014777,2]
[426484489,1782450639000,-2408.4812541,0.00014779,2]
[426484484,1782450639000,-420.566893,0.00014777,2]
[426484480,1782450639000,-263109.0407418,0.00014777,2]
[426484482,1782450639000,-61841.7906694,0.00014777,2]
[426484516,1782450639000,-7017.05819634,0.000149,2]
[426484507,1782450639000,-155.10972126,0.00014891,2]
[426484527,1782450639000,-162.17,0.00014921,2]
[426484552,1782450639000,-500.0,0.00014999,2]
[426484533,1782450639000,-1000.0,0.00014921,2]
[426484578,1782450639000,-263.06334692,0.00015,2]
[426484576,1782450639000,-339.45155238,0.00015,2]
[426484572,1782450639000,-502.787504,0.00015,2]
[426484570,1782450639000,-207916.8,0.00015,2]
[426484567,1782450639000,-8460.0,0.00015,2]
[426484565,1782450639000,-6649867.42339786,0.00015,2]
[426484529,1782450639000,-232.24,0.00014921,2]
[426484559,1782450639000,-500.0,0.00014999,2]
[426484546,1782450639000,-5714.9323662,0.00014947,2]
[426484561,1782450639000,-300.0,0.00014999,2]
[426484563,1782450639000,-666.0,0.00014999,2]
[426484557,1782450639000,-500.0,0.00014999,2]
[426484545,1782450639000,-687.3795962,0.00014947,2]
[426484535,1782450639000,-173.36212293,0.00014925,2]
[426484539,1782450639000,-500.0,0.00014946,2]
[426484537,1782450639000,-500.0,0.00014946,2]
[426484531,1782450639000,-2437.12,0.00014921,2]
[426484541,1782450639000,-512.64,0.00014946,2]
[426484555,1782450639000,-500.0,0.00014999,2]
[426484551,1782450639000,-19972.17384,0.00014947,2]
[426484548,1782450639000,-290370.4833577,0.00014947,2]
[426484542,1782450639000,-42572.0139954,0.00014947,2]
[426484592,1782450640000,-611.92918471,0.00015,2]
[426484593,1782450641000,-469.01951982,0.00015,2]
[426484603,1782450647000,-522.78396786,0.00015,2]
[426484602,1782450647000,-1780.13134354,0.00015,2]
[426484607,1782450661000,325.09343428,0.00037289,120]
[426484608,1782450911000,400.0,0.00037289,120]
[426484609,1782451659000,5750.87437903,0.0003725,120]
[426484610,1782451700000,-500.0,0.00010842,2]
[426484613,1782451700000,-300.0,0.00011926,2]
[426484612,1782451700000,-210.713394,0.00010842,2]
[426484611,1782451700000,-150.0,0.00010842,2]
[426484614,1782451701000,-250.0,0.00011926,2]
[426484615,1782451701000,-500.0,0.00011926,2]
[426484616,1782451701000,-300.0,0.00011926,2]
[426484617,1782451701000,-193.0,0.00011926,2]
[426484618,1782451701000,-193.0,0.00011926,2]
[426484619,1782451701000,-160.0,0.0001193,2]
[426484620,1782451701000,-166.66,0.00012025,2]
[426484625,1782451701000,-150.0,0.00012356,2]
[426484623,1782451701000,-3563.04,0.00012295,2]
[426484622,1782451701000,-166.66,0.00012278,2]
[426484624,1782451701000,-500.0,0.00012328,2]
[426484626,1782451701000,-1852.42,0.00012456,2]
[426484627,1782451701000,-166.66,0.00012531,2]
[426484628,1782451701000,-458.036606,0.00012714,2]
[426484621,1782451701000,-219.81,0.00012262,2]
[426484631,1782451702000,-166.66,0.00012785,2]
[426484629,1782451702000,-80.733394,0.00012714,2]
[426484632,1782451702000,-166.66,0.00013038,2]
[426484634,1782451702000,-166.66,0.00013291,2]
[426484633,1782451702000,-1053.38,0.0001325,2]
[426484635,1782451702000,-739.06,0.00013294,2]
[426484630,1782451702000,-200.0,0.00012772,2]
[426484636,1782451703000,-439.23,0.00013321,2]
[426484637,1782451703000,-6987.616606,0.00013331,2]
[426484639,1782451703000,-166.83,0.00013351,2]
[426484638,1782451703000,-1041.953394,0.00013331,2]
[426484640,1782451703000,-151.0,0.00013353,2]
[426484645,1782451703000,-5808.37,0.00013371,2]
[426484641,1782451703000,-150.0,0.00013353,2]
[426484644,1782451703000,-151.70776136,0.00013353,2]
[426484642,1782451703000,-150.0,0.00013353,2]
[426484647,1782451703000,-889.0,0.00013388,2]
[426484643,1782451703000,-151.0,0.00013353,2]
[426484648,1782451703000,-916.0,0.00013388,2]
[426484646,1782451703000,-150.0,0.00013371,2]
[426484658,1782451703000,-4042.60367235,0.00013603,2]
[426484657,1782451703000,-1185.8347,0.00013602,2]
[426484655,1782451703000,-899.0,0.00013517,2]
[426484651,1782451703000,-883.0,0.00013436,2]
[426484656,1782451703000,-1053.38,0.00013581,2]
[426484654,1782451703000,-891.0,0.00013517,2]
[426484652,1782451703000,-216.48047229,0.0001345,2]
[426484650,1782451703000,-637.86115536,0.00013428,2]
[426484649,1782451703000,-274.13884464,0.00013428,2]
[426484653,1782451703000,-190.84,0.00013453,2]
[426484666,1782451704000,-500.0,0.00013702,2]
[426484659,1782451704000,-4614.44392765,0.00013603,2]
[426484660,1782451704000,-1189.4327,0.00013603,2]
[426484661,1782451704000,-2500.0,0.00013603,2]
[426484663,1782451704000,-500.0,0.00013702,2]
[426484664,1782451704000,-298.12337235,0.00013702,2]
[426484665,1782451704000,-201.87662765,0.00013702,2]
[426484662,1782451704000,-898.0,0.00013675,2]
[426484668,1782451704000,-500.0,0.00013702,2]
[426484669,1782451704000,-500.0,0.00013702,2]
[426484670,1782451704000,-500.0,0.00013702,2]
[426484671,1782451704000,-500.0,0.00013702,2]
[426484673,1782451704000,-500.0,0.00013702,2]
[426484672,1782451704000,-500.0,0.00013702,2]
[426484674,1782451704000,-500.0,0.00013702,2]
[426484675,1782451704000,-500.0,0.00013702,2]
[426484667,1782451704000,-500.0,0.00013702,2]
[426484686,1782451705000,-201.87662765,0.00013702,2]
[426484688,1782451705000,-500.0,0.00013702,2]
[426484691,1782451705000,-500.0,0.00013702,2]
[426484687,1782451705000,-500.0,0.00013702,2]
[426484690,1782451705000,-500.0,0.00013702,2]
[426484685,1782451705000,-298.12337235,0.00013702,2]
[426484689,1782451705000,-500.0,0.00013702,2]
[426484684,1782451705000,-500.0,0.00013702,2]
[426484679,1782451705000,-500.0,0.00013702,2]
[426484682,1782451705000,-500.0,0.00013702,2]
[426484680,1782451705000,-500.0,0.00013702,2]
[426484681,1782451705000,-500.0,0.00013702,2]
[426484692,1782451705000,-500.0,0.00013702,2]
[426484678,1782451705000,-500.0,0.00013702,2]
[426484676,1782451705000,-500.0,0.00013702,2]
[426484677,1782451705000,-500.0,0.00013702,2]
[426484683,1782451705000,-500.0,0.00013702,2]
[426484693,1782451705000,-500.0,0.00013702,2]
[426484710,1782451705000,-500.0,0.00013702,2]
[426484695,1782451705000,-500.0,0.00013702,2]
[426484713,1782451705000,-317.41502677,0.00013702,2]
[426484711,1782451705000,-500.0,0.00013702,2]
[426484712,1782451705000,-500.0,0.00013702,2]
[426484709,1782451705000,-500.0,0.00013702,2]
[426484706,1782451705000,-298.12337235,0.00013702,2]
[426484708,1782451705000,-500.0,0.00013702,2]
[426484707,1782451705000,-201.87662765,0.00013702,2]
[426484705,1782451705000,-500.0,0.00013702,2]
[426484694,1782451705000,-500.0,0.00013702,2]
[426484704,1782451705000,-500.0,0.00013702,2]
[426484702,1782451705000,-500.0,0.00013702,2]
[426484701,1782451705000,-500.0,0.00013702,2]
[426484698,1782451705000,-500.0,0.00013702,2]
[426484700,1782451705000,-500.0,0.00013702,2]
[426484699,1782451705000,-500.0,0.00013702,2]
[426484697,1782451705000,-500.0,0.00013702,2]
[426484696,1782451705000,-500.0,0.00013702,2]
[426484703,1782451705000,-500.0,0.00013702,2]
[426484720,1782451706000,-500.0,0.00013702,2]
[426484719,1782451706000,-500.0,0.00013702,2]
[426484717,1782451706000,-500.0,0.00013702,2]
[426484715,1782451706000,-500.0,0.00013702,2]
[426484716,1782451706000,-500.0,0.00013702,2]
[426484714,1782451706000,-500.0,0.00013702,2]
[426484723,1782451706000,-500.0,0.00013702,2]
[426484718,1782451706000,-500.0,0.00013702,2]
[426484721,1782451706000,-500.0,0.00013702,2]
[426484726,1782451706000,-210.55319924,0.00013702,2]
[426484724,1782451706000,-500.0,0.00013702,2]
[426484725,1782451706000,-500.0,0.00013702,2]
[426484727,1782451706000,-500.0,0.00013702,2]
[426484728,1782451706000,-241.35035918,0.00013702,2]
[426484730,1782451706000,-471.19521285,0.00013702,2]
[426484731,1782451706000,-9528.80478715,0.00013703,2]
[426484732,1782451706000,-10000.0,0.00013703,2]
[426484722,1782451706000,-500.0,0.00013702,2]
[426484729,1782451706000,-28.80478716,0.00013702,2]
[426484733,1782451715000,-10000.0,0.00013703,2]
[426484734,1782451716000,-10000.0,0.00013703,2]
[426484735,1782451716000,-10000.0,0.00013703,2]
[426484736,1782451717000,-10000.0,0.00013703,2]
[426484737,1782451717000,-10000.0,0.00013703,2]
[426484739,1782451718000,-10000.0,0.00013703,2]
[426484738,1782451718000,-10000.0,0.00013703,2]
[426484741,1782451719000,-10000.0,0.00013703,2]
[426484740,1782451719000,-10000.0,0.00013703,2]
[426484743,1782451721000,-10000.0,0.00013703,2]
[426484742,1782451721000,-10000.0,0.00013703,2]
[426484744,1782451722000,-10000.0,0.00013703,2]
[426484745,1782451723000,-10000.0,0.00013703,2]
[426484746,1782451724000,-10000.0,0.00013703,2]
[426484771,1782451831000,-906.0,0.00013803,2]
[426484769,1782451831000,-301.8783989,0.00013703,2]
[426484770,1782451831000,-604.21262527,0.00013703,2]
[426484773,1782451831000,-200.0,0.0001384,2]
[426484772,1782451831000,-501.0,0.00013836,2]
[426484775,1782451831000,-200.0,0.00013978,2]
[426484779,1782451831000,-200.0,0.00014259,2]
[426484774,1782451831000,-1053.38,0.00013912,2]
[426484776,1782451831000,-897.0,0.00013984,2]
[426484777,1782451831000,-200.0,0.00014118,2]
[426484781,1782451831000,-538.77,0.00014303,2]
[426484784,1782451831000,-500.0,0.00014603,2]
[426484778,1782451831000,-1053.38,0.00014244,2]
[426484766,1782451831000,-200.0,0.00013703,2]
[426484763,1782451831000,-36910.504,0.00013603,2]
[426484765,1782451831000,-150.0,0.00013702,2]
[426484768,1782451831000,-44014.37211285,0.00013703,2]
[426484785,1782451831000,-2622.29836603,0.00014676,2]
[426484764,1782451831000,-249.93096909,0.00013702,2]
[426484762,1782451831000,-2500.0,0.00013603,2]
[426484760,1782451831000,-216.48047229,0.00013181,2]
[426484761,1782451831000,-300.33293359,0.00013181,2]
[426484759,1782451831000,-151.0,0.00013005,2]
[426484758,1782451831000,-151.0,0.00012812,2]
[426484757,1782451831000,-150.0,0.00012812,2]
[426484754,1782451831000,-151.0,0.00012812,2]
[426484756,1782451831000,-151.0,0.00012812,2]
[426484755,1782451831000,-151.0,0.00012812,2]